bitfinex/quotes_ETHUSD_20260216
["timestamp","ask_amount","ask_price","bid_price","bid_amount"]
[1771280584635,0.0011,1995.2,1994.9,1.25419564]
[1771280586066,0.0011,1995.5,1994.9,1.25419564]
[1771280586252,0.46116236,1996.0,1995.1,0.45842267]
[1771280586435,0.46407618,1995.9,1995.3,0.45842267]
[1771280586636,0.46407618,1995.8,1995.3,0.45842267]
[1771280586865,1.71367629,1996.0,1995.3,0.45842267]
[1771280587168,0.46407553,1995.9,1995.3,0.45842267]
[1771280587358,1.71367629,1996.0,1995.3,0.45842267]
[1771280587556,0.46405667,1995.9,1995.3,0.45842267]
[1771280587761,1.25251393,1996.0,1995.3,0.45842267]
[1771280588062,0.46405667,1995.9,1995.3,0.45842267]
[1771280588262,5.47080952,1996.2,1995.4,1.71130429]
[1771280588263,1.25244226,1996.1,1995.4,1.71130429]
[1771280588440,0.46414872,1996.0,1995.5,0.45842267]
[1771280588634,0.46414872,1995.9,1995.5,0.45842267]
[1771280588863,1.7135553,1996.2,1995.5,0.45842267]
[1771280589060,0.46410925,1996.1,1995.5,0.45842267]
[1771280589264,0.46410925,1996.0,1995.5,0.45842267]
[1771280589468,1.252384,1996.2,1995.5,0.45842267]
[1771280590269,1.71351835,1996.3,1995.5,0.45842267]
[1771280591179,1.71351835,1996.3,1995.6,1.71117873]
[1771280594463,1.71351835,1996.3,1995.7,0.46245459]
[1771280594966,0.47748732,1996.2,1995.5,1.7152451]
[1771280595168,0.47748732,1996.2,1995.3,1.30145459]
[1771280596572,0.47748732,1996.0,1995.4,1.25288162]
[1771280596775,1.25242047,1996.2,1995.4,1.71533621]
[1771280596959,1.25242047,1996.2,1995.5,0.46245459]
[1771280597265,1.72990779,1996.2,1995.5,0.46245459]
[1771280597644,0.46566676,1996.1,1995.5,0.46245459]
[1771280597846,0.46566676,1996.0,1995.5,0.46245459]
[1771280598047,0.46566676,1995.9,1995.5,0.46245459]
[1771280598376,0.46566676,1995.8,1995.5,0.46245459]
[1771280598575,0.0011,1996.1,1995.5,0.46245459]
[1771280598874,0.46568323,1996.0,1995.5,1.71521391]
[1771280599073,0.46568323,1995.9,1995.5,1.71521391]
[1771280599275,0.46568323,1995.8,1995.5,1.71521391]
[1771280599456,1.2535539,1996.1,1995.5,1.71521391]
[1771280599647,0.46569868,1996.0,1995.5,1.71521391]
[1771280599974,0.46569868,1995.9,1995.5,1.71521391]
[1771280600176,0.46569868,1995.8,1995.5,1.71521391]
[1771280600470,1.2535539,1996.1,1995.5,1.71521391]
[1771280600771,0.46572613,1996.0,1995.5,1.71521391]
[1771280600969,0.46572613,1995.9,1995.5,1.71521391]
[1771280601140,0.46572613,1995.8,1995.5,1.71521391]
[1771280601346,1.73104122,1996.1,1995.5,1.71521391]
[1771280601545,0.46576432,1996.0,1995.5,1.71521391]
[1771280601843,0.46576432,1995.9,1995.5,1.71521391]
[1771280602040,0.46576432,1995.8,1995.5,1.71521391]
[1771280602275,1.73104122,1996.1,1995.5,1.71521391]
[1771280602451,0.46575416,1996.0,1995.5,1.71521391]
[1771280602652,0.47748732,1995.8,1994.9,0.001]
[1771280602956,1.73030616,1995.5,1994.9,0.001]
[1771280603158,0.46575416,1995.4,1994.9,0.001]
[1771280603342,0.94324148,1995.3,1994.9,0.001]
[1771280603544,0.46881483,1995.2,1994.9,0.001]
[1771280603773,0.47748732,1995.3,1994.9,0.001]
[1771280603958,0.46882877,1995.2,1994.9,0.001]
[1771280604164,0.46882877,1995.1,1994.9,0.001]
[1771280604674,0.46879149,1995.1,1994.9,0.001]
[1771280604972,1.73035948,1995.5,1994.9,1.25419564]
[1771280605474,0.47748732,1995.5,1994.9,1.25419564]
[1771280606278,0.47748732,1995.4,1994.9,0.001]
[1771280607376,1.73041685,1995.4,1994.9,0.001]
[1771280610279,1.73041685,1995.4,1995.1,0.001]
[1771280610981,0.47748732,1995.3,1995.1,0.001]
[1771280612554,1.73045424,1995.3,1995.1,0.001]
[1771280618804,1.73045424,1995.3,1994.9,0.001]
[1771280618805,0.47748732,1995.1,1994.9,0.001]
[1771280619100,0.47748732,1995.1,1994.0,1.25372309]
[1771280619311,0.47748732,1995.1,1994.2,0.001]
[1771280619597,0.47748732,1995.1,1994.1,0.46345459]
[1771280620683,0.47748732,1995.1,1994.2,0.001]
[1771280620890,1.25313283,1995.0,1994.4,1.71596441]
[1771280621280,1.73062015,1995.0,1994.3,1.25352346]
[1771280621499,1.73062015,1995.0,1994.4,0.001]
[1771280621990,0.47748732,1994.9,1994.5,0.001]
[1771280622298,0.47748732,1994.9,1994.4,0.001]
[1771280622696,0.47748732,1994.9,1994.5,0.001]
[1771280622894,1.73070928,1994.9,1994.4,0.001]
[1771280623271,1.73070928,1994.9,1994.5,0.001]
[1771280623473,1.73070928,1994.9,1994.4,0.001]
[1771280623887,1.73070928,1994.9,1994.5,0.001]
[1771280624091,1.73070928,1994.9,1994.4,0.001]
[1771280624485,1.73070928,1994.9,1994.5,0.001]
[1771280624694,1.73070928,1994.9,1994.4,0.001]
[1771280625191,1.73070928,1994.9,1994.5,0.001]
[1771280625392,1.73070928,1994.9,1994.4,0.001]
[1771280625699,0.46772912,1994.8,1994.4,0.001]
[1771280627185,1.72079914,1995.1,1994.5,0.001]
[1771280627373,1.72079914,1995.1,1994.4,0.45329829]
[1771280627374,0.46772912,1995.0,1994.4,0.45329829]
[1771280627574,0.46772912,1995.0,1994.5,0.001]
[1771280629005,0.46772912,1995.0,1994.4,0.45554344]
[1771280629300,0.46772912,1995.0,1994.5,0.001]
[1771280629673,0.46364163,1994.8,1994.5,0.001]
[1771280629877,0.46364163,1994.8,1994.6,0.001]
[1771280630082,0.46364163,1994.8,1994.2,0.001]
[1771280630688,0.46364163,1994.8,1994.3,0.001]
[1771280630908,0.46364163,1994.8,1994.2,0.001]
[1771280631484,0.46364163,1994.8,1994.3,0.001]
[1771280631688,0.46364163,1994.8,1994.2,0.001]
[1771280631891,1.71696293,1994.7,1994.2,0.001]
[1771280632201,0.46364163,1994.6,1994.3,0.001]
[1771280632407,0.46364163,1994.6,1994.2,0.001]
[1771280632787,0.46364163,1994.6,1994.3,0.001]
[1771280633107,0.46364163,1994.6,1994.2,0.001]
[1771280633609,0.46364163,1994.6,1994.3,0.001]
[1771280633798,0.46364163,1994.6,1994.2,0.001]
[1771280634999,1.25344697,1994.5,1994.2,0.001]
[1771280635203,1.25344697,1994.5,1994.3,0.001]
[1771280635512,1.25344697,1994.5,1994.1,0.001]
[1771280635816,1.71707411,1994.6,1994.1,0.001]
[1771280636010,1.71707411,1994.6,1994.2,0.001]
[1771280636711,1.71707411,1994.6,1994.3,0.001]
[1771280639315,1.25444311,1994.7,1994.3,0.001]
[1771280639614,1.71808474,1994.7,1994.3,0.002]
[1771280641716,1.71808474,1994.7,1994.3,0.001]
[1771280641717,0.46364163,1994.6,1994.3,0.001]
[1771280643921,1.25344697,1994.5,1994.3,0.001]
[1771280644097,0.46364163,1994.4,1994.0,0.001]
[1771280644294,2.4900886,1994.5,1993.6,0.45554344]
[1771280644996,0.773,1994.5,1993.6,0.45554344]
[1771280646013,1.71715145,1994.4,1993.7,0.45554344]
[1771280647188,0.46364163,1994.3,1993.7,0.45554344]
[1771280647390,0.46364163,1994.3,1993.6,1.25396431]
[1771280647596,0.46364163,1994.3,1993.6,1.70950775]
[1771280647798,0.773,1994.5,1993.7,0.45554344]
[1771280648021,2.02645134,1994.5,1993.8,1.25388704]
[1771280648316,1.25342635,1994.6,1993.9,0.45554344]
[1771280648518,0.0011,1994.7,1993.9,0.45554344]
[1771280649090,1.25443082,1994.7,1993.9,0.45554344]
[1771280650306,1.25443082,1994.7,1994.1,0.45554344]
[1771280650707,0.0011,1994.7,1994.1,0.45554344]
[1771280651411,0.0011,1994.6,1994.1,0.45554344]
[1771280652754,6.729911,1994.5,1993.8,0.828]
[1771280652929,6.729911,1994.5,1993.3,6.729911]
[1771280652930,1.53522387,1993.7,1992.4,6.01379319]
[1771280653234,0.46364163,1993.5,1992.4,0.45554344]
[1771280653437,0.46364163,1993.3,1992.4,0.45554344]
[1771280653605,2.40218864,1992.7,1992.4,0.45554344]
[1771280653806,3.60328296,1993.1,1992.6,0.45554344]
[1771280654006,3.60328296,1992.9,1992.3,0.47334053]
[1771280654234,3.60328296,1993.0,1992.2,1.3895458]
[1771280654424,3.60328296,1993.0,1992.2,0.57364268]
[1771280654627,4.0828576,1993.2,1992.2,0.57364268]
[1771280654813,1.25432742,1993.1,1992.2,0.57364268]
[1771280655350,1.73390206,1993.1,1992.2,0.57364268]
[1771280656041,0.775,1993.0,1992.2,0.57364268]
[1771280656408,0.47957464,1992.9,1992.2,0.1346551]
[1771280656606,4.0828576,1992.9,1992.2,0.1346551]
[1771280656811,1.25451625,1992.8,1992.2,0.1346551]
[1771280657428,1.73409089,1992.8,1992.2,0.1346551]
[1771280663246,1.73409089,1992.8,1992.0,1.5751656]
[1771280663450,1.73409089,1992.8,1992.0,2.01415318]
[1771280663817,1.73409089,1992.8,1992.0,0.43898758]
[1771280664341,1.73409089,1992.8,1992.0,1.69397477]
[1771280664523,1.73409089,1992.8,1992.0,0.43898758]
[1771280664845,1.73409089,1992.8,1992.3,0.001]
[1771280665043,1.73409089,1992.8,1992.0,0.43898758]
[1771280665247,1.73409089,1992.8,1992.2,0.001]
[1771280665840,2.97460217,1992.7,1992.2,0.001]
[1771280666147,1.73409089,1992.8,1992.2,0.001]
[1771280666314,2.97416902,1992.7,1992.2,0.001]
[1771280666514,1.73409089,1992.8,1992.2,0.001]
[1771280666737,2.97416936,1992.7,1992.2,0.001]
[1771280666915,0.777,1992.9,1992.3,0.43898758]
[1771280667131,2.9739567,1992.8,1992.2,0.001]
[1771280667333,2.97389737,1992.7,1992.2,0.001]
[1771280667548,0.47957464,1992.8,1992.2,0.001]
[1771280667854,2.51103009,1992.9,1992.2,0.43998758]
[1771280668048,2.97387031,1992.8,1992.2,0.43998758]
[1771280668348,2.51103009,1992.9,1992.2,1.69487754]
[1771280668550,2.97413094,1992.8,1992.2,1.69487754]
[1771280668754,2.97413094,1992.7,1992.2,1.69487754]
[1771280668956,2.51103009,1992.9,1992.2,0.43998758]
[1771280669253,2.97413014,1992.8,1992.2,0.43998758]
[1771280669442,2.97413014,1992.7,1992.2,0.43998758]
[1771280669623,2.51103009,1992.9,1992.2,0.43998758]
[1771280669955,2.97458286,1992.8,1992.3,0.43898758]
[1771280670148,1.25450056,1992.9,1992.3,0.43898758]
[1771280670348,2.97524692,1992.8,1992.3,0.43898758]
[1771280670550,1.25450056,1992.9,1992.3,0.43898758]
[1771280670746,2.97524493,1992.8,1992.3,0.43898758]
[1771280670948,1.25450056,1992.9,1992.3,0.43898758]
[1771280671255,2.97524458,1992.8,1992.2,1.69487326]
[1771280671440,1.25450056,1992.9,1992.2,1.69487326]
[1771280671441,2.97524458,1992.7,1992.2,1.69487326]
[1771280671646,1.25450056,1992.9,1992.2,1.69487326]
[1771280671846,2.97626738,1992.8,1992.2,1.69487326]
[1771280672048,2.97626738,1992.7,1992.2,1.69487326]
[1771280672353,1.25450056,1992.9,1992.2,1.69487326]
[1771280672563,2.97738952,1992.8,1992.2,1.25588568]
[1771280672762,2.97738952,1992.7,1992.2,1.25588568]
[1771280673059,1.25450056,1992.9,1992.2,0.001]
[1771280673268,0.47957464,1992.7,1992.2,0.001]
[1771280673428,2.97746611,1992.6,1992.2,0.001]
[1771280674239,2.97746611,1992.5,1992.2,0.001]
[1771280676261,1.25467974,1992.6,1992.2,0.001]
[1771280676575,2.98246366,1992.5,1992.2,0.43998758]
[1771280676857,0.778,1992.7,1992.2,0.43998758]
[1771280677176,1.2543908,1993.0,1992.2,0.001]
[1771280677535,2.03237102,1993.1,1992.3,0.001]
[1771280677738,0.778,1993.1,1992.3,0.001]
[1771280678032,0.0011,1992.7,1992.3,0.001]
[1771280679657,0.0011,1992.8,1992.3,0.001]
[1771280680767,3.60328296,1993.5,1992.3,0.001]
[1771280680968,5.35732503,1993.6,1992.4,0.904]
[1771280681136,1.75404207,1993.6,1992.4,0.904]
[1771280681744,1.75404207,1993.6,1992.5,6.54570514]
[1771280681953,1.75404207,1993.6,1992.5,1.25470514]
[1771280682150,3.60328296,1993.5,1992.5,1.25470514]
[1771280682671,4.10328296,1993.5,1992.6,0.824]
[1771280682846,3.60328296,1993.5,1992.6,0.824]
[1771280683241,4.85732503,1993.6,1992.6,0.824]
[1771280683475,3.60328296,1993.6,1992.6,0.824]
[1771280683675,5.35730902,1993.6,1992.6,0.824]
[1771280684174,5.35730902,1993.6,1992.7,1.25457921]
[1771280684344,0.5,1993.5,1992.7,1.25457921]
[1771280687175,1.25408549,1993.5,1992.7,1.25457921]
[1771280687350,0.5,1993.4,1992.7,1.25457921]
[1771280688081,1.25408549,1993.5,1992.7,1.25457921]
[1771280688377,0.5,1993.5,1992.7,1.25457921]
[1771280689058,2.99667839,1993.4,1992.7,1.25457921]
[1771280689249,2.99667839,1993.3,1992.7,1.25457921]
[1771280689449,2.99667839,1993.2,1992.7,1.25457921]
[1771280689677,0.5,1993.5,1992.7,1.25457921]
[1771280689678,2.99667839,1993.1,1992.7,1.25457921]
[1771280689865,0.5,1993.5,1992.7,1.25457921]
[1771280690064,2.99640098,1993.4,1992.7,1.25457921]
[1771280690279,2.99640098,1993.3,1992.7,1.25457921]
[1771280690584,2.99640098,1993.2,1992.7,1.25457921]
[1771280690877,2.99640098,1993.1,1992.7,1.25457921]
[1771280691179,0.5,1993.5,1992.7,1.25457921]
[1771280691370,2.99624012,1993.4,1992.7,1.25457921]
[1771280691583,2.99624012,1993.3,1992.7,1.25457921]
[1771280691879,2.99624012,1993.2,1992.7,1.25457921]
[1771280692179,0.5,1993.5,1992.7,1.25457921]
[1771280692368,0.0011,1993.1,1992.7,1.25457921]
[1771280701689,0.0011,1993.1,1992.8,6.73842669]
[1771280703478,0.0011,1993.1,1992.9,0.832]
[1771280704194,0.0011,1993.1,1993.0,1.25439036]
[1771280705176,3.00599314,1993.1,1992.9,5.84972311]
[1771280705366,0.0011,1993.1,1993.0,1.25439036]
[1771280705568,3.00613288,1993.1,1993.0,1.25439036]
[1771280706294,0.5,1993.3,1993.0,1.25439036]
[1771280711295,0.5,1993.3,1992.9,5.84972311]
[1771280711809,0.5,1993.3,1993.0,1.25439036]
[1771280713710,0.5,1993.3,1992.9,2.08643478]
[1771280713876,2.91138727,1993.3,1992.9,2.08643478]
[1771280715212,2.41138727,1993.2,1992.9,2.08643478]
[1771280715986,2.91138727,1993.3,1992.9,2.08643478]
[1771280716297,0.5,1993.3,1992.9,2.08643478]
[1771280718216,3.01404282,1993.2,1992.9,2.08643478]
[1771280718429,3.01404282,1993.1,1992.9,2.08643478]
[1771280718713,3.01404282,1993.0,1992.9,2.08643478]
[1771280718915,0.0011,1993.4,1992.9,8.82486147]
[1771280719993,0.0011,1993.4,1993.0,0.001]
[1771280720314,0.0011,1993.2,1993.0,0.001]
[1771280722107,0.5011,1993.4,1993.1,6.73842669]
[1771280722108,0.0011,1993.4,1993.1,6.73842669]
[1771280722312,0.5,1994.3,1993.2,0.842]
[1771280722603,0.5,1994.2,1993.2,0.842]
[1771280724403,1.25369841,1994.1,1993.3,1.25420157]
[1771280724616,0.5,1994.0,1993.3,1.25420157]
[1771280729445,0.5,1994.0,1993.3,7.99262826]
[1771280732111,0.5,1994.0,1993.3,1.25420157]
[1771280732112,0.5,1993.9,1993.3,1.25420157]
[1771280735758,0.5011,1993.9,1993.3,1.25420157]
[1771280736261,1.25494216,1993.9,1993.3,1.25420157]
[1771280736425,0.5,1993.8,1993.3,1.25420157]
[1771280738526,1.253891,1993.8,1993.3,1.25420157]
[1771280738721,5.01640435,1993.9,1993.2,5.85905755]
[1771280738722,0.5,1993.7,1993.2,2.09625548]
[1771280739827,0.5,1993.7,1993.2,0.842]
[1771280740028,0.5,1993.7,1993.2,2.09625556]
[1771280740454,0.5,1993.6,1993.2,0.842]
[1771280741062,0.5,1993.6,1993.1,1.25532732]
[1771280741331,0.5,1993.6,1993.1,0.001]
[1771280742266,0.5,1993.5,1993.1,0.001]
[1771280744174,0.5,1993.5,1992.8,0.001]
[1771280744569,0.5,1993.3,1992.8,0.001]
[1771280746572,1.75426449,1993.2,1992.8,0.001]
[1771280749468,1.75426449,1993.2,1992.9,0.001]
[1771280750475,1.25426449,1993.2,1992.9,0.001]
[1771280750676,0.5,1993.6,1992.9,0.001]
[1771280751045,0.5,1993.4,1992.9,0.001]
[1771280754077,0.5,1993.2,1992.9,0.001]
[1771280762883,0.5,1993.2,1993.0,0.001]
[1771280763078,0.0011,1993.1,1993.0,0.001]
[1771280763384,0.5011,1993.1,1993.0,0.001]
[1771280763766,0.0011,1993.1,1993.0,0.001]
[1771280765202,0.5011,1993.1,1993.0,0.001]
[1771280768424,0.0011,1993.1,1993.0,0.001]
[1771280768788,0.0011,1993.2,1993.0,0.001]
[1771280769143,0.5011,1993.2,1993.0,0.001]
[1771280769830,0.0011,1993.2,1993.0,0.001]
[1771280771022,0.5011,1993.2,1993.0,0.001]
[1771280771224,0.0011,1993.2,1993.0,0.001]
[1771280775639,0.5011,1993.2,1993.0,0.001]
[1771280777201,0.0011,1993.1,1993.0,0.001]
[1771280777394,0.5011,1993.1,1993.0,0.001]
[1771280780737,0.5011,1993.1,1992.6,2.09861583]
[1771280780895,0.5011,1993.1,1992.6,1.25461583]
[1771280783038,0.5011,1993.1,1992.4,5.01903391]
[1771280783500,0.5011,1993.1,1992.4,11.75832964]
[1771280790834,0.5011,1993.1,1992.5,0.001]
[1771280791024,0.0011,1993.0,1992.6,0.845]
[1771280791344,0.5011,1993.0,1992.6,0.845]
[1771280793335,0.5011,1993.0,1992.7,1.25457921]
[1771280793842,0.0011,1993.2,1992.8,6.73929573]
[1771280794138,0.5011,1993.2,1992.7,1.25457921]
[1771280794308,0.5011,1993.2,1992.8,0.847]
[1771280794847,0.0011,1993.2,1992.8,0.847]
[1771280795410,0.0011,1993.2,1992.9,1.2544533]
[1771280798838,0.5011,1993.2,1992.9,1.2544533]
[1771280804944,0.0011,1993.1,1993.0,0.001]
[1771280805254,0.0011,1993.2,1993.0,0.001]
[1771280805425,0.48192841,1993.2,1993.0,0.001]
[1771280818164,0.48192841,1993.2,1993.1,0.001]
[1771280818364,0.48192841,1993.2,1993.0,0.001]
[1771280818765,0.0011,1993.1,1993.0,0.001]
[1771280827060,0.0011,1993.8,1993.0,0.001]
[1771280827246,0.4891276,1993.7,1993.0,0.49937416]
[1771280827646,0.4891276,1993.7,1993.0,0.49673707]
[1771280829377,0.4891276,1993.6,1993.1,1.25432742]
[1771280830577,1.25395848,1993.7,1993.1,1.25432742]
[1771280830966,1.74308608,1993.7,1993.1,1.25432742]
[1771280831476,1.74308608,1993.7,1993.1,1.25532742]
[1771280831676,0.0011,1993.5,1993.1,1.25532742]
[1771280838284,0.46789556,1993.5,1993.1,0.001]
[1771280843699,0.0011,1993.4,1993.1,0.001]
[1771280853498,0.0011,1993.4,1993.1,1.25532742]
[1771280857906,0.0011,1993.4,1993.1,0.001]
[1771280858506,0.46789556,1993.4,1993.1,0.001]
[1771280860191,0.46789556,1993.4,1992.9,1.2554533]
[1771280864716,0.46789556,1993.4,1992.9,0.001]
[1771280864897,0.47607337,1993.3,1992.9,0.001]
[1771280865100,0.0011,1993.4,1992.9,0.001]
[1771280865300,0.47717337,1993.4,1992.9,0.001]
[1771280867126,0.47607337,1993.3,1992.9,0.001]
[1771280868022,0.47607337,1993.3,1993.0,0.001]
[1771280868213,0.47607337,1993.3,1992.9,0.001]
[1771280868410,0.47717337,1993.3,1992.9,0.001]
[1771280880242,0.0011,1993.4,1992.9,0.001]
[1771280880439,0.0011,1993.4,1993.0,0.49184078]
[1771280880814,0.0011,1993.4,1993.0,0.49284078]
[1771280881026,0.0011,1993.2,1993.0,0.49284078]
[1771280882340,0.0011,1993.2,1993.1,1.25432742]
[1771280882635,0.0011,1993.3,1993.1,1.7461682]
[1771280884512,0.0011,1993.3,1993.2,0.49184078]
[1771280884713,0.0011,1993.4,1993.2,0.49184078]
[1771280885042,0.0011,1993.8,1993.2,7.61143328]
[1771280885336,0.0011,1994.0,1993.6,0.49184078]
[1771280886139,0.0033,1994.0,1993.6,0.49184078]
[1771280886442,0.0011,1994.0,1993.6,0.49184078]
[1771280886627,0.0011,1994.0,1993.8,0.49184078]
[1771280886831,0.0011,1994.2,1993.8,0.49184078]
[1771280887037,0.0033,1994.1,1993.8,0.49184078]
[1771280889239,0.0011,1994.2,1993.9,1.74566494]
[1771280891233,0.0011,1994.2,1993.8,5.01529665]
[1771280891444,0.49861167,1994.2,1993.8,5.01529665]
[1771280891744,0.0011,1994.2,1993.8,5.50713743]
[1771280892532,0.0011,1994.2,1993.8,4.01529665]
[1771280893242,0.49861167,1994.2,1993.4,5.50836835]
[1771280893450,0.49861167,1994.2,1993.7,0.001]
[1771280893642,0.0011,1994.1,1993.7,0.001]
[1771280896232,0.0011,1994.1,1993.7,1.25494994]
[1771280898333,0.0011,1994.1,1993.7,1.72234552]
[1771280901460,0.0011,1994.1,1993.7,1.25494994]
[1771280904566,0.4710796,1994.1,1993.7,0.001]
[1771280905444,0.4710796,1994.1,1993.8,0.001]
[1771280905855,0.0011,1994.0,1993.8,0.001]
[1771280907130,0.4710796,1994.0,1993.8,0.001]
[1771280909967,0.0011,1994.0,1993.8,0.001]
[1771280913671,0.0011,1994.0,1993.7,0.001]
[1771280913672,0.4699796,1993.9,1993.7,0.001]
[1771280913842,0.4699796,1993.9,1993.5,0.001]
[1771280915238,0.0011,1994.0,1993.5,0.001]
[1771280916265,0.4710796,1994.0,1993.5,0.001]
[1771280917978,0.4710796,1994.0,1993.6,0.001]
[1771280922287,1.72484936,1994.0,1993.6,0.001]
[1771280922452,0.4710796,1994.0,1993.6,0.001]
[1771280923381,0.4699796,1993.9,1993.6,0.001]
[1771280924064,0.0011,1994.0,1993.6,0.001]
[1771280926984,0.0011,1994.0,1993.6,1.25501284]
[1771280928585,0.0011,1994.0,1993.6,1.74007275]
[1771280929776,0.0011,1993.9,1993.6,1.74007275]
[1771280930271,0.0011,1993.9,1993.6,1.25501284]
[1771280932786,0.0011,1993.9,1993.6,0.001]
[1771280936360,0.0011,1993.9,1993.6,1.25501284]
[1771280936687,0.0011,1993.9,1993.6,1.73570662]
[1771280940892,0.0011,1993.9,1993.6,0.001]
[1771280941100,0.0011,1993.9,1993.7,0.001]
[1771280941468,0.0011,1993.8,1993.7,0.001]
[1771280942741,0.0011,1993.8,1993.4,0.001]
[1771280942742,0.46355929,1993.8,1993.4,0.001]
[1771280943003,0.46245929,1993.6,1993.0,0.001]
[1771280943508,0.753,1993.7,1993.0,0.48169378]
[1771280944285,1.21545929,1993.7,1993.0,0.48169378]
[1771280944481,0.46245929,1993.6,1993.0,0.48169378]
[1771280945799,0.46245929,1993.7,1993.1,1.7350212]
[1771280947830,0.46245929,1993.4,1993.0,0.001]
[1771280948104,0.46245929,1993.6,1993.0,0.48069378]
[1771280948303,5.01689976,1993.8,1993.0,0.48069378]
[1771280948304,0.46355929,1993.8,1993.0,0.48069378]
[1771280948474,0.752,1993.7,1993.0,0.48069378]
[1771280949005,1.21445929,1993.7,1993.0,0.48069378]
[1771280949305,0.46245929,1993.6,1993.0,0.48069378]
[1771280950020,0.46245929,1993.6,1992.9,1.25544635]
[1771280950176,0.46245929,1993.0,1992.4,0.48069378]
[1771280950376,7.99147477,1993.6,1992.4,0.48069378]
[1771280950377,0.46245929,1993.5,1992.6,0.48069378]
[1771280950579,0.46245929,1993.5,1992.8,0.48069378]
[1771280952107,2.46847703,1993.6,1993.0,0.48069378]
[1771280953614,2.46847703,1993.6,1993.1,0.001]
[1771280953787,2.46957703,1993.6,1993.1,0.001]
[1771280954704,1.21555929,1993.6,1993.1,0.001]
[1771280956127,2.4695726,1993.6,1993.1,0.001]
[1771280961017,0.47527214,1993.5,1993.1,0.001]
[1771280961419,1.72939043,1993.5,1993.1,0.001]
[1771280962112,0.47527214,1993.4,1993.1,0.001]
[1771280963592,2.00711326,1993.6,1993.2,0.47439253]
[1771280963915,2.00711326,1993.6,1993.1,0.001]
[1771280964303,2.4823854,1993.6,1993.1,0.001]
[1771280966105,0.0011,1993.5,1993.1,0.001]
[1771280968702,0.0011,1993.5,1993.1,0.47539253]
[1771280969225,0.0011,1993.5,1993.1,0.001]
[1771280974030,0.0011,1993.5,1993.1,0.47539253]
[1771280975710,0.0011,1993.5,1993.2,0.47439253]
[1771280976214,0.0011,1993.5,1993.2,1.72865239]
[1771280977815,0.0011,1993.5,1993.1,0.47539253]
[1771280979939,0.0011,1993.5,1993.1,0.001]
[1771280982039,0.0011,1993.5,1993.1,1.72970212]
[1771280982437,0.0011,1993.5,1993.1,0.47539253]
[1771280983239,0.0011,1993.5,1993.1,0.001]
[1771280985944,0.0011,1993.5,1993.1,0.49859232]
[1771280986246,1.74746391,1993.5,1993.1,0.001]
[1771280987140,0.49223508,1993.4,1993.1,0.001]
[1771280989340,0.49333508,1993.4,1993.1,0.001]
[1771280989522,1.74747435,1993.4,1993.1,0.001]
[1771280989715,1.25523927,1993.4,1993.1,0.001]
[1771280989952,1.2552426,1993.4,1993.1,0.001]
[1771280990650,0.0011,1993.4,1993.1,0.001]
[1771280995261,1.70625088,1993.5,1993.1,0.001]
[1771280995262,0.0011,1993.5,1993.2,0.45280309]
[1771280997555,0.0011,1993.5,1993.2,1.70706553]
[1771280998353,0.0011,1993.7,1993.4,0.45280309]
[1771280998527,0.0011,1994.1,1993.8,0.45280309]
[1771280998863,0.0011,1994.6,1994.0,0.45280309]
[1771280999053,0.0011,1994.6,1994.4,0.45280309]
[1771280999260,0.0011,1994.9,1994.4,0.45280309]
[1771280999261,0.0011,1994.9,1994.6,0.45280309]
[1771280999430,0.0011,1995.2,1994.9,0.45280309]
[1771280999632,1.70340654,1996.2,1995.2,0.45280309]
[1771280999849,18.77153319,1997.1,1995.6,7.19023556]
[1771280999850,1.70331359,1996.4,1995.6,7.19023556]
[1771281000042,2.10931359,1996.4,1995.6,7.19023556]
[1771281000344,2.10931359,1996.4,1994.9,0.29711301]
[1771281000345,0.45102702,1995.5,1994.2,0.45280309]
[1771281000550,0.45102702,1995.2,1994.2,0.45280309]
[1771281000858,7.18845949,1994.9,1994.1,0.46]
[1771281001158,7.94945949,1994.9,1994.1,0.46]
[1771281001350,0.45102702,1994.6,1993.8,0.45280309]
[1771281001729,0.45102702,1994.6,1993.7,0.892]
[1771281002038,0.45102702,1994.4,1993.7,0.892]
[1771281003162,1.21202702,1994.4,1993.7,0.892]
[1771281003372,1.25467268,1994.3,1993.7,0.892]
[1771281004173,7.18676553,1994.2,1993.4,1.35680309]
[1771281004682,0.0011,1994.1,1993.4,1.35680309]
[1771281005180,0.0011,1994.0,1993.4,1.35680309]
[1771281005478,1.25479841,1994.1,1993.4,2.61094055]
[1771281005984,0.0011,1994.0,1993.4,2.61094055]
[1771281006266,0.0011,1994.0,1993.4,0.904]
[1771281006461,0.0011,1994.0,1993.4,2.15813205]
[1771281006685,1.70472543,1994.1,1993.4,2.15813205]
[1771281006836,0.0011,1994.0,1993.4,2.15813205]
[1771281007171,6.73573851,1994.0,1993.4,0.904]
[1771281007362,1.25388704,1993.8,1993.1,1.25532006]
[1771281007669,1.25388704,1993.8,1993.1,1.70812315]
[1771281007978,0.0011,1993.7,1993.2,0.45280309]
[1771281008147,0.0011,1993.8,1993.1,0.001]
[1771281008535,1.70488465,1993.9,1993.1,0.001]
[1771281008536,0.0011,1993.7,1993.1,0.001]
[1771281008757,0.45212702,1993.8,1993.1,0.001]
[1771281009538,1.25394994,1993.7,1993.1,0.001]
[1771281010469,0.45212702,1993.6,1993.1,0.001]
[1771281010975,0.45102702,1993.5,1993.1,0.001]
[1771281011182,0.45102702,1993.5,1992.9,0.45280309]
[1771281011183,0.0011,1993.5,1992.9,0.45280309]
[1771281011665,1.25519433,1993.5,1992.8,0.45380309]
[1771281011872,1.25519433,1993.5,1992.8,0.001]
[1771281012066,0.45102702,1993.4,1992.8,0.001]
[1771281013167,0.45212702,1993.3,1992.8,0.001]
[1771281013840,8.48677389,1993.2,1992.8,0.001]
[1771281014040,1.25987089,1993.1,1992.8,0.001]
[1771281014462,0.49787089,1993.0,1992.0,2.63801572]
[1771281015553,0.49787089,1992.8,1992.0,1.38302458]
[1771281015738,0.49787089,1992.6,1992.0,0.904]
[1771281015940,1.25470514,1992.5,1991.9,2.14507321]
[1771281016141,1.25470514,1992.5,1991.9,0.89]